[Event "*** Titled Tuesday Blitz"]
[Site "Chess.com"]
[Date "2020.04.21"]
[Round "2"]
[White "Karina_Ivanova"]
[Black "Stormeman100100"]
[Result "0-1"]
[WhiteElo "2213"]
[BlackElo "2448"]
[TimeControl "180+1"]
[EndTime "10:16:47 PDT"]
[Termination "Stormeman100100 won by resignation"]

1. Nf3 {[%clk 0:03:00.5]} 1... d5 {[%clk 0:02:58.7]} 2. g3 {[%clk 0:03:00.3]}
2... Nf6 {[%clk 0:02:53.8]} 3. Bg2 {[%clk 0:02:59.6]} 3... g6 {[%clk 0:02:51.9]}
4. c4 {[%clk 0:02:58.2]} 4... c6 {[%clk 0:02:51.2]} 5. O-O {[%clk 0:02:57.2]}
5... Bg7 {[%clk 0:02:51.4]} 6. d4 {[%clk 0:02:55.7]} 6... O-O {[%clk 0:02:50.8]}
7. b3 {[%clk 0:02:54.6]} 7... a5 {[%clk 0:02:48.5]} 8. Nc3 {[%clk 0:02:52.6]}
8... Bf5 {[%clk 0:02:38]} 9. Bb2 {[%clk 0:02:51.8]} 9... Ne4 {[%clk 0:02:36.5]}
10. Nh4 {[%clk 0:02:48.5]} 10... Nxc3 {[%clk 0:02:28.4]} 11. Bxc3 {[%clk
0:02:47.9]} 11... Be6 {[%clk 0:02:26.5]} 12. Rc1 {[%clk 0:02:34.5]} 12... dxc4
{[%clk 0:02:21.4]} 13. bxc4 {[%clk 0:02:33.4]} 13... Bxc4 {[%clk 0:02:16.2]} 14.
Qd2 {[%clk 0:02:29.7]} 14... Nd7 {[%clk 0:01:57.3]} 15. Rfd1 {[%clk 0:02:20.4]}
15... Nf6 {[%clk 0:01:43.8]} 16. e4 {[%clk 0:02:19.4]} 16... b5 {[%clk
0:01:39.8]} 17. f4 {[%clk 0:02:11.9]} 17... Qb6 {[%clk 0:01:32.5]} 18. Kh1
{[%clk 0:02:09.8]} 18... Rfd8 {[%clk 0:01:25.2]} 19. f5 {[%clk 0:02:06.6]} 19...
e6 {[%clk 0:01:07.2]} 20. e5 {[%clk 0:02:02.8]} 20... Nd5 {[%clk 0:01:02.1]} 21.
f6 {[%clk 0:02:02.4]} 21... Bf8 {[%clk 0:01:00.4]} 22. Ba1 {[%clk 0:01:58.8]}
22... Nc7 {[%clk 0:00:51.1]} 23. Nf3 {[%clk 0:01:50]} 23... Bd5 {[%clk 0:00:50]}
24. h4 {[%clk 0:01:38.9]} 24... h5 {[%clk 0:00:47.2]} 25. Kh2 {[%clk 0:01:28.1]}
25... b4 {[%clk 0:00:38.9]} 26. Rb1 {[%clk 0:01:23.4]} 26... Nb5 {[%clk
0:00:38]} 27. Rdc1 {[%clk 0:01:22.5]} 27... Rac8 {[%clk 0:00:33.5]} 28. Qe3
{[%clk 0:01:16.5]} 28... c5 {[%clk 0:00:22.1]} 29. dxc5 {[%clk 0:01:15.9]} 29...
Rxc5 {[%clk 0:00:21.5]} 30. Rxc5 {[%clk 0:01:08.4]} 30... Qxc5 {[%clk
0:00:21.5]} 31. Nd4 {[%clk 0:01:06.5]} 31... Bxg2 {[%clk 0:00:18.7]} 32. Kxg2
{[%clk 0:01:01.8]} 32... Nxd4 {[%clk 0:00:18.6]} 33. Rd1 {[%clk 0:00:59.7]}
33... Qc2+ {[%clk 0:00:18.2]} 34. Rd2 {[%clk 0:00:58.6]} 34... Qc6+ {[%clk
0:00:17.8]} 35. Kh2 {[%clk 0:00:57]} 35... Nf3+ {[%clk 0:00:16.8]} 0-1

[Event "*** Titled Tuesday Blitz"]
[Site "Chess.com"]
[Date "2020.04.21"]
[Round "2"]
[White "ftorodent"]
[Black "Avileyshon7"]
[Result "1-0"]
[WhiteElo "2670"]
[BlackElo "2382"]
[TimeControl "180+1"]
[EndTime "10:16:52 PDT"]
[Termination "ftorodent won by resignation"]

1. d4 {[%clk 0:03:00.9]} 1... Nf6 {[%clk 0:02:58.6]} 2. c4 {[%clk 0:03:00.6]}
2... g6 {[%clk 0:02:58.6]} 3. Nc3 {[%clk 0:02:57.3]} 3... Bg7 {[%clk 0:02:56.2]}
4. e4 {[%clk 0:02:56.6]} 4... d6 {[%clk 0:02:25.6]} 5. Nf3 {[%clk 0:02:56.3]}
5... O-O {[%clk 0:02:25.1]} 6. Be2 {[%clk 0:02:56.4]} 6... e5 {[%clk 0:02:20.3]}
7. O-O {[%clk 0:02:56.3]} 7... Nc6 {[%clk 0:02:18.5]} 8. d5 {[%clk 0:02:55.8]}
8... Ne7 {[%clk 0:02:18.6]} 9. Ne1 {[%clk 0:02:54.3]} 9... Nd7 {[%clk
0:02:17.8]} 10. Nd3 {[%clk 0:02:54.2]} 10... f5 {[%clk 0:02:16.5]} 11. Bd2
{[%clk 0:02:54.3]} 11... Nf6 {[%clk 0:02:13.3]} 12. f3 {[%clk 0:02:54.3]} 12...
f4 {[%clk 0:02:00.1]} 13. c5 {[%clk 0:02:53.3]} 13... g5 {[%clk 0:01:59.9]} 14.
Rc1 {[%clk 0:02:51.6]} 14... Ng6 {[%clk 0:01:57.8]} 15. cxd6 {[%clk 0:02:36.5]}
15... cxd6 {[%clk 0:01:56.9]} 16. Nf2 {[%clk 0:02:36.6]} 16... h5 {[%clk
0:01:55.7]} 17. h3 {[%clk 0:02:34.6]} 17... Kh7 {[%clk 0:01:47.6]} 18. Nb5
{[%clk 0:02:28.5]} 18... Nh4 {[%clk 0:01:05.4]} 19. Nc7 {[%clk 0:02:25.8]} 19...
Rb8 {[%clk 0:01:03.8]} 20. Ne6 {[%clk 0:02:23.7]} 20... Bxe6 {[%clk 0:01:02.7]}
21. dxe6 {[%clk 0:02:23.6]} 21... Qe7 {[%clk 0:01:02.9]} 22. Qb3 {[%clk
0:02:20.8]} 22... Rfe8 {[%clk 0:00:57]} 23. Bb5 {[%clk 0:02:14.1]} 23... Rec8
{[%clk 0:00:44.9]} 24. Qa3 {[%clk 0:02:07.3]} 24... Qxe6 {[%clk 0:00:42.4]} 25.
Be2 {[%clk 0:02:00]} 25... Bf8 {[%clk 0:00:40.8]} 26. Qxa7 {[%clk 0:01:56.1]}
26... d5 {[%clk 0:00:39.2]} 27. Rxc8 {[%clk 0:01:49.6]} 27... Rxc8 {[%clk
0:00:37.7]} 28. Qxb7+ {[%clk 0:01:48.3]} 28... Kh6 {[%clk 0:00:36.7]} 29. exd5
{[%clk 0:01:31.3]} 29... Nxd5 {[%clk 0:00:36.7]} 30. Bd3 {[%clk 0:01:29.8]}
30... Rc7 {[%clk 0:00:35]} 31. Qb3 {[%clk 0:01:28.5]} 31... g4 {[%clk
0:00:34.8]} 32. hxg4 {[%clk 0:01:26]} 32... hxg4 {[%clk 0:00:34.3]} 33. Nxg4+
{[%clk 0:01:25.8]} 33... Kg5 {[%clk 0:00:33.9]} 34. Be1 {[%clk 0:01:01.3]} 34...
Bc5+ {[%clk 0:00:33.7]} 35. Bf2 {[%clk 0:01:01.4]} 35... Bxf2+ {[%clk
0:00:33.4]} 36. Nxf2 {[%clk 0:01:01.5]} 36... Qd6 {[%clk 0:00:31.1]} 37. Ne4+
{[%clk 0:00:59.9]} 1-0

[Event "*** Titled Tuesday Blitz"]
[Site "Chess.com"]
[Date "2020.04.21"]
[Round "2"]
[White "jefferyx"]
[Black "Gahan-MG"]
[Result "1/2-1/2"]
[WhiteElo "2852"]
[BlackElo "2590"]
[TimeControl "180+1"]
[EndTime "10:16:54 PDT"]
[Termination "Game drawn by agreement"]

1. c4 {[%clk 0:03:00.9]} 1... Nf6 {[%clk 0:03:00.1]} 2. Nf3 {[%clk 0:02:59.7]}
2... g6 {[%clk 0:03:00.1]} 3. Nc3 {[%clk 0:02:59.5]} 3... d5 {[%clk 0:03:00.2]}
4. cxd5 {[%clk 0:02:59.3]} 4... Nxd5 {[%clk 0:03:01.1]} 5. Qb3 {[%clk
0:02:59.4]} 5... Nb6 {[%clk 0:03:00.3]} 6. d4 {[%clk 0:02:59.8]} 6... Bg7 {[%clk
0:03:00.3]} 7. e4 {[%clk 0:03:00.1]} 7... O-O {[%clk 0:02:59.5]} 8. Be3 {[%clk
0:03:00]} 8... Nc6 {[%clk 0:02:59.7]} 9. Rd1 {[%clk 0:02:59.4]} 9... Bg4 {[%clk
0:02:57.9]} 10. d5 {[%clk 0:02:59.7]} 10... Ne5 {[%clk 0:02:52.3]} 11. Be2
{[%clk 0:03:00]} 11... Qc8 {[%clk 0:02:46.6]} 12. Nxe5 {[%clk 0:02:50.7]} 12...
Bxe5 {[%clk 0:02:32.9]} 13. O-O {[%clk 0:02:50.5]} 13... Bxe2 {[%clk 0:02:22]}
14. Nxe2 {[%clk 0:02:51.4]} 14... c6 {[%clk 0:02:20]} 15. Rc1 {[%clk 0:02:47.3]}
15... Qd7 {[%clk 0:02:11.9]} 16. dxc6 {[%clk 0:02:46.4]} 16... bxc6 {[%clk
0:02:11.9]} 17. Rfd1 {[%clk 0:02:46.5]} 17... Qb7 {[%clk 0:02:06.2]} 18. Nd4
{[%clk 0:02:46.2]} 18... Rac8 {[%clk 0:02:04.6]} 19. Ne6 {[%clk 0:02:44.7]}
19... Rfe8 {[%clk 0:01:51.4]} 20. Ng5 {[%clk 0:02:44.1]} 20... e6 {[%clk
0:01:47.3]} 21. Nf3 {[%clk 0:02:09.7]} 21... Bg7 {[%clk 0:01:44.8]} 22. Nd2
{[%clk 0:01:59.6]} 22... Qa6 {[%clk 0:01:40.6]} 23. Nf3 {[%clk 0:01:49.7]} 23...
Qa4 {[%clk 0:01:31.5]} 24. Qxa4 {[%clk 0:01:24.1]} 24... Nxa4 {[%clk 0:01:32.4]}
25. b3 {[%clk 0:01:25]} 25... Nc3 {[%clk 0:01:29.1]} 26. Rd2 {[%clk 0:01:25.4]}
26... Nxe4 {[%clk 0:01:28.2]} 27. Rdc2 {[%clk 0:01:24.1]} 27... c5 {[%clk
0:01:24.8]} 28. Nd2 {[%clk 0:01:16.6]} 28... Nxd2 {[%clk 0:01:21.1]} 29. Rxd2
{[%clk 0:01:17.5]} 29... Bd4 {[%clk 0:01:11.3]} 30. Kf1 {[%clk 0:01:17.9]} 30...
Bxe3 {[%clk 0:01:06.2]} 31. fxe3 {[%clk 0:01:18.8]} 31... Rc7 {[%clk 0:01:06.8]}
32. Rc4 {[%clk 0:01:18.5]} 32... Kf8 {[%clk 0:01:02]} 33. Rd6 {[%clk 0:01:18.6]}
33... Ke7 {[%clk 0:01:01.3]} 34. Ra6 {[%clk 0:01:19.1]} 34... Rd8 {[%clk
0:00:54.4]} 35. Ke2 {[%clk 0:01:19.3]} 35... Rd6 {[%clk 0:00:54.2]} 36. Ra5
{[%clk 0:01:19.7]} 36... Rd5 {[%clk 0:00:53.5]} 37. b4 {[%clk 0:01:18.6]} 37...
Kd6 {[%clk 0:00:53.7]} 38. e4 {[%clk 0:01:18.3]} 38... Rg5 {[%clk 0:00:49.3]}
39. bxc5+ {[%clk 0:01:07.9]} 39... Rgxc5 {[%clk 0:00:48.4]} 40. Rcxc5 {[%clk
0:01:08.8]} 40... Rxc5 {[%clk 0:00:48.4]} 41. Rxa7 {[%clk 0:01:09.7]} 41... Rc2+
{[%clk 0:00:45.4]} 42. Kf3 {[%clk 0:01:09.4]} 42... f5 {[%clk 0:00:42.2]} 43.
exf5 {[%clk 0:01:09.4]} 43... gxf5 {[%clk 0:00:29.8]} 44. Rxh7 {[%clk
0:00:51.6]} 1/2-1/2

[Event "*** Titled Tuesday Blitz"]
[Site "Chess.com"]
[Date "2020.04.21"]
[Round "2"]
[White "FMJoseHerrera"]
[Black "ChelsieMonica"]
[Result "1-0"]
[WhiteElo "2609"]
[BlackElo "2308"]
[TimeControl "180+1"]
[EndTime "10:16:54 PDT"]
[Termination "FMJoseHerrera won by resignation"]

1. Nf3 {[%clk 0:03:00.9]} 1... Nf6 {[%clk 0:02:59.8]} 2. g3 {[%clk 0:03:01.4]}
2... e6 {[%clk 0:03:00.7]} 3. Bg2 {[%clk 0:03:02.2]} 3... d5 {[%clk 0:03:01.2]}
4. d3 {[%clk 0:03:03.1]} 4... Be7 {[%clk 0:03:01.9]} 5. O-O {[%clk 0:03:03.2]}
5... O-O {[%clk 0:03:02.8]} 6. c3 {[%clk 0:03:04.1]} 6... c5 {[%clk 0:03:03.4]}
7. a3 {[%clk 0:03:04.6]} 7... Nc6 {[%clk 0:03:03.3]} 8. b4 {[%clk 0:03:05]} 8...
cxb4 {[%clk 0:03:03.4]} 9. axb4 {[%clk 0:03:05.1]} 9... Bd7 {[%clk 0:03:03.2]}
10. Nbd2 {[%clk 0:03:05.3]} 10... a5 {[%clk 0:03:02.7]} 11. b5 {[%clk
0:03:05.5]} 11... Na7 {[%clk 0:03:03]} 12. c4 {[%clk 0:03:06]} 12... Nc8 {[%clk
0:03:00.3]} 13. Bb2 {[%clk 0:03:05.1]} 13... Nb6 {[%clk 0:03:00.1]} 14. Ne5
{[%clk 0:02:59.4]} 14... Be8 {[%clk 0:02:57.1]} 15. e3 {[%clk 0:02:52.1]} 15...
Nfd7 {[%clk 0:02:50.8]} 16. Nxd7 {[%clk 0:02:43.8]} 16... Bxd7 {[%clk
0:02:43.5]} 17. Qe2 {[%clk 0:02:43.2]} 17... Bf6 {[%clk 0:02:41.9]} 18. Bxf6
{[%clk 0:02:29.9]} 18... Qxf6 {[%clk 0:02:41.3]} 19. c5 {[%clk 0:02:27.4]} 19...
Nc8 {[%clk 0:02:41.1]} 20. d4 {[%clk 0:02:27.8]} 20... Ne7 {[%clk 0:02:38.5]}
21. Rfb1 {[%clk 0:02:23.1]} 21... e5 {[%clk 0:02:34.8]} 22. Nf3 {[%clk
0:02:19.8]} 22... exd4 {[%clk 0:02:31.2]} 23. Nxd4 {[%clk 0:01:55.7]} 23... Rfc8
{[%clk 0:02:20.1]} 24. Rc1 {[%clk 0:01:55.1]} 24... a4 {[%clk 0:02:10.4]} 25.
Qd1 {[%clk 0:01:46.2]} 25... a3 {[%clk 0:01:58.8]} 26. Qb3 {[%clk 0:01:46.1]}
26... Nf5 {[%clk 0:01:55.3]} 27. Nxf5 {[%clk 0:01:34]} 27... Qxf5 {[%clk
0:01:51]} 28. Bxd5 {[%clk 0:01:18.7]} 28... Bxb5 {[%clk 0:01:43.8]} 29. Bxb7
{[%clk 0:01:12.9]} 29... Bc6 {[%clk 0:01:42.7]} 30. Bxc6 {[%clk 0:01:03.3]}
30... Rxc6 {[%clk 0:01:41.5]} 31. Rxa3 {[%clk 0:01:04.2]} 31... Rac8 {[%clk
0:01:36.9]} 32. Ra5 {[%clk 0:01:00.9]} 32... h5 {[%clk 0:01:36.7]} 33. Qb4
{[%clk 0:00:59.9]} 33... Qh3 {[%clk 0:01:29.8]} 34. Qe4 {[%clk 0:00:55.6]} 34...
Rh6 {[%clk 0:01:15.6]} 35. Ra8 {[%clk 0:00:53.8]} 35... h4 {[%clk 0:01:15.4]}
36. Rxc8+ {[%clk 0:00:52.7]} 36... Qxc8 {[%clk 0:01:15.3]} 37. c6 {[%clk
0:00:48.6]} 37... hxg3 {[%clk 0:01:15.1]} 38. hxg3 {[%clk 0:00:49.5]} 38... Qh3
{[%clk 0:01:14.4]} 39. Qg2 {[%clk 0:00:49.8]} 39... Qc8 {[%clk 0:01:10.5]} 40.
c7 {[%clk 0:00:49.6]} 40... Re6 {[%clk 0:01:04.9]} 41. Qd5 {[%clk 0:00:48.6]}
41... Re8 {[%clk 0:01:03.1]} 42. Qd6 {[%clk 0:00:47.4]} 42... Kh7 {[%clk
0:01:00.8]} 43. Rb1 {[%clk 0:00:44.6]} 43... Qg4 {[%clk 0:00:54.4]} 44. Rb8
{[%clk 0:00:41.1]} 44... Rc8 {[%clk 0:00:54.5]} 45. Rxc8 {[%clk 0:00:40.3]}
45... Qxc8 {[%clk 0:00:53.5]} 46. Qd8 {[%clk 0:00:40.5]} 1-0

[Event "*** Titled Tuesday Blitz"]
[Site "Chess.com"]
[Date "2020.04.21"]
[Round "2"]
[White "Beca95"]
[Black "jfriedel"]
[Result "1-0"]
[WhiteElo "2857"]
[BlackElo "2581"]
[TimeControl "180+1"]
[EndTime "10:16:55 PDT"]
[Termination "Beca95 won by resignation"]

1. d4 {[%clk 0:03:00.9]} 1... Nf6 {[%clk 0:02:58.9]} 2. Nf3 {[%clk 0:03:00.9]}
2... e6 {[%clk 0:02:55.4]} 3. Bg5 {[%clk 0:03:00.3]} 3... c5 {[%clk 0:02:45.6]}
4. e3 {[%clk 0:02:57.8]} 4... Be7 {[%clk 0:02:42.5]} 5. Nbd2 {[%clk 0:02:57]}
5... b6 {[%clk 0:02:38.8]} 6. c3 {[%clk 0:02:57.2]} 6... Bb7 {[%clk 0:02:37.7]}
7. Bd3 {[%clk 0:02:56.7]} 7... O-O {[%clk 0:02:37.3]} 8. Qe2 {[%clk 0:02:55.4]}
8... cxd4 {[%clk 0:02:34.5]} 9. cxd4 {[%clk 0:02:54.8]} 9... Nc6 {[%clk
0:02:34.6]} 10. a3 {[%clk 0:02:54.2]} 10... Nd5 {[%clk 0:02:31.2]} 11. h4 {[%clk
0:02:46.2]} 11... f5 {[%clk 0:01:55.1]} 12. g3 {[%clk 0:02:32]} 12... Nf6 {[%clk
0:01:16.4]} 13. Bxf6 {[%clk 0:02:04.8]} 13... Bxf6 {[%clk 0:01:13.7]} 14. Ba6
{[%clk 0:02:05.5]} 14... Bxa6 {[%clk 0:01:09.7]} 15. Qxa6 {[%clk 0:02:06.4]}
15... Rc8 {[%clk 0:00:40.6]} 16. Qd3 {[%clk 0:01:54.9]} 16... d5 {[%clk
0:00:28.9]} 17. Ke2 {[%clk 0:01:50.8]} 17... Qd7 {[%clk 0:00:20.2]} 18. Rac1
{[%clk 0:01:49.1]} 18... Rc7 {[%clk 0:00:20.6]} 19. Rc2 {[%clk 0:01:48.9]} 19...
Rfc8 {[%clk 0:00:20.5]} 20. Rhc1 {[%clk 0:01:48.6]} 20... Na5 {[%clk 0:00:15.6]}
21. b4 {[%clk 0:01:14.9]} 21... Rxc2 {[%clk 0:00:13.9]} 22. Rxc2 {[%clk
0:01:15.8]} 22... Rxc2 {[%clk 0:00:14.2]} 23. Qxc2 {[%clk 0:01:15.6]} 23... Qb5+
{[%clk 0:00:14.5]} 24. Qd3 {[%clk 0:01:15.7]} 24... Nc4 {[%clk 0:00:13.7]} 25.
Nxc4 {[%clk 0:01:09.5]} 25... dxc4 {[%clk 0:00:13.5]} 26. Qc3 {[%clk 0:01:09.8]}
26... Qc6 {[%clk 0:00:13.7]} 27. a4 {[%clk 0:01:04.6]} 27... a6 {[%clk 0:00:13]}
28. b5 {[%clk 0:01:05]} 28... axb5 {[%clk 0:00:13.1]} 29. axb5 {[%clk
0:01:05.9]} 29... Qxb5 {[%clk 0:00:13.7]} 30. Nd2 {[%clk 0:01:06.6]} 30... Be7
{[%clk 0:00:12.4]} 31. Nxc4 {[%clk 0:01:06]} 31... Qc6 {[%clk 0:00:10.4]} 32.
Qb3 {[%clk 0:01:03]} 32... b5 {[%clk 0:00:10.1]} 33. Ne5 {[%clk 0:01:02.9]}
33... Qb6 {[%clk 0:00:10.1]} 34. d5 {[%clk 0:00:58.5]} 34... b4 {[%clk
0:00:10.6]} 35. dxe6 {[%clk 0:00:55.1]} 35... Qb5+ {[%clk 0:00:11.1]} 36. Nd3
{[%clk 0:00:54.9]} 36... Bd6 {[%clk 0:00:09.4]} 37. e7+ {[%clk 0:00:53.6]} 1-0

[Event "*** Titled Tuesday Blitz"]
[Site "Chess.com"]
[Date "2020.04.21"]
[Round "2"]
[White "AnishGiri"]
[Black "canary2016"]
[Result "1-0"]
[WhiteElo "3009"]
[BlackElo "1851"]
[TimeControl "180+1"]
[EndTime "10:16:55 PDT"]
[Termination "AnishGiri won on time"]

1. d4 {[%clk 0:02:54.2]} 1... d5 {[%clk 0:02:59.5]} 2. c4 {[%clk 0:02:54.4]}
2... c6 {[%clk 0:02:59.5]} 3. Nc3 {[%clk 0:02:54.8]} 3... Nf6 {[%clk 0:02:59.4]}
4. Nf3 {[%clk 0:02:55.4]} 4... e6 {[%clk 0:02:57.1]} 5. e3 {[%clk 0:02:55.5]}
5... Nbd7 {[%clk 0:02:54.9]} 6. Qc2 {[%clk 0:02:56]} 6... Bd6 {[%clk 0:02:53.7]}
7. Bd3 {[%clk 0:02:56.6]} 7... dxc4 {[%clk 0:02:53.1]} 8. Bxc4 {[%clk
0:02:56.3]} 8... b5 {[%clk 0:02:52.8]} 9. Be2 {[%clk 0:02:55.7]} 9... O-O {[%clk
0:02:47.9]} 10. O-O {[%clk 0:02:56.2]} 10... Bb7 {[%clk 0:02:47.1]} 11. Rd1
{[%clk 0:02:56.1]} 11... Qc7 {[%clk 0:02:44.6]} 12. Bd2 {[%clk 0:02:55.4]} 12...
Rac8 {[%clk 0:02:41.1]} 13. Rac1 {[%clk 0:02:51.7]} 13... a6 {[%clk 0:02:38.7]}
14. b4 {[%clk 0:02:50.8]} 14... Rfd8 {[%clk 0:02:37.3]} 15. a3 {[%clk
0:02:50.9]} 15... e5 {[%clk 0:02:26.7]} 16. Bd3 {[%clk 0:02:51.1]} 16... h6
{[%clk 0:02:22.8]} 17. h3 {[%clk 0:02:50.9]} 17... Re8 {[%clk 0:02:17.7]} 18.
Qb1 {[%clk 0:02:51.1]} 18... exd4 {[%clk 0:02:11.4]} 19. exd4 {[%clk 0:02:50.9]}
19... Bf4 {[%clk 0:02:00.3]} 20. Ne2 {[%clk 0:02:45.3]} 20... Bxd2 {[%clk
0:01:56.4]} 21. Rxd2 {[%clk 0:02:46.2]} 21... Nd5 {[%clk 0:01:53.9]} 22. Bh7+
{[%clk 0:02:38.5]} 22... Kf8 {[%clk 0:01:46.4]} 23. Bf5 {[%clk 0:02:39.4]} 23...
Rcd8 {[%clk 0:01:42.7]} 24. Bxd7 {[%clk 0:02:26.2]} 24... Qxd7 {[%clk
0:01:41.4]} 25. Ne5 {[%clk 0:02:22.2]} 25... Qd6 {[%clk 0:01:30.7]} 26. Rcd1
{[%clk 0:02:05.7]} 26... Qf6 {[%clk 0:01:17.8]} 27. Qh7 {[%clk 0:01:56.5]} 27...
g5 {[%clk 0:00:37.8]} 28. Rd3 {[%clk 0:01:52.1]} 28... Qg7 {[%clk 0:00:37.2]}
29. Qf5 {[%clk 0:01:51.4]} 29... Bc8 {[%clk 0:00:34.9]} 30. Qf3 {[%clk 0:01:50]}
30... Re6 {[%clk 0:00:32.4]} 31. R3d2 {[%clk 0:01:37]} 31... Rf6 {[%clk
0:00:31.6]} 32. Qg3 {[%clk 0:01:36.9]} 32... Re8 {[%clk 0:00:26.2]} 33. Rc1
{[%clk 0:01:35]} 33... Nf4 {[%clk 0:00:18.7]} 34. Nxf4 {[%clk 0:01:32.1]} 34...
gxf4 {[%clk 0:00:18.8]} 35. Qf3 {[%clk 0:01:31.1]} 35... Re7 {[%clk 0:00:16.4]}
36. Rxc6 {[%clk 0:01:26.7]} 36... Re8 {[%clk 0:00:15.4]} 37. Rc7 {[%clk
0:01:21.9]} 37... Be6 {[%clk 0:00:09.3]} 38. Rdc2 {[%clk 0:01:20.8]} 38... Qh7
{[%clk 0:00:06.3]} 39. R2c6 {[%clk 0:01:18.9]} 39... Qg7 {[%clk 0:00:05.1]} 40.
Kh2 {[%clk 0:01:18.6]} 40... Qh7 {[%clk 0:00:03.8]} 41. d5 {[%clk 0:01:15.3]}
41... Bg4 {[%clk 0:00:01.8]} 42. Nxg4 {[%clk 0:01:13.3]} 42... Rxc6 {[%clk
0:00:01.5]} 43. dxc6 {[%clk 0:01:13.7]} 1-0

[Event "*** Titled Tuesday Blitz"]
[Site "Chess.com"]
[Date "2020.04.21"]
[Round "2"]
[White "MikaelyanArman"]
[Black "hornsounder"]
[Result "1-0"]
[WhiteElo "2740"]
[BlackElo "2341"]
[TimeControl "180+1"]
[EndTime "10:16:58 PDT"]
[Termination "MikaelyanArman won by resignation"]

1. e4 {[%clk 0:03:00.9]} 1... e6 {[%clk 0:02:59.4]} 2. d4 {[%clk 0:02:59.9]}
2... d5 {[%clk 0:03:00.3]} 3. Bd3 {[%clk 0:02:59.5]} 3... c5 {[%clk 0:02:57.1]}
4. exd5 {[%clk 0:02:57.7]} 4... exd5 {[%clk 0:02:56.2]} 5. Nf3 {[%clk
0:02:57.1]} 5... Nc6 {[%clk 0:02:55.2]} 6. O-O {[%clk 0:02:48.4]} 6... Nf6
{[%clk 0:02:43]} 7. Re1+ {[%clk 0:02:45]} 7... Be7 {[%clk 0:02:43]} 8. dxc5
{[%clk 0:02:42.3]} 8... O-O {[%clk 0:02:42.7]} 9. Bg5 {[%clk 0:02:37.6]} 9...
Bg4 {[%clk 0:02:34.8]} 10. Nbd2 {[%clk 0:02:37]} 10... Bxc5 {[%clk 0:02:33.8]}
11. h3 {[%clk 0:02:37.1]} 11... Bh5 {[%clk 0:02:33.4]} 12. c3 {[%clk 0:02:32.5]}
12... Qb6 {[%clk 0:02:23.4]} 13. Re2 {[%clk 0:02:16.6]} 13... Nd7 {[%clk
0:01:26.1]} 14. b4 {[%clk 0:02:09.1]} 14... Bd6 {[%clk 0:01:25.9]} 15. Qc2
{[%clk 0:01:55.8]} 15... Bg6 {[%clk 0:01:24.3]} 16. Bxg6 {[%clk 0:01:54.9]}
16... hxg6 {[%clk 0:01:23.1]} 17. Qd3 {[%clk 0:01:38.9]} 17... d4 {[%clk
0:01:18.9]} 18. Nc4 {[%clk 0:01:35.7]} 18... Qc7 {[%clk 0:00:47.2]} 19. Nxd4
{[%clk 0:01:22.7]} 19... Nce5 {[%clk 0:00:44.3]} 20. Nxe5 {[%clk 0:01:18.6]}
20... Nxe5 {[%clk 0:00:45.2]} 21. Qc2 {[%clk 0:01:11.6]} 21... a6 {[%clk
0:00:45.4]} 22. Rae1 {[%clk 0:01:09.5]} 22... f6 {[%clk 0:00:42]} 23. Ne6 {[%clk
0:01:05.7]} 23... Qc4 {[%clk 0:00:35.1]} 24. Nxf8 {[%clk 0:01:03.4]} 24... Kxf8
{[%clk 0:00:34.8]} 25. Re4 {[%clk 0:00:53.5]} 25... Qc6 {[%clk 0:00:32.1]} 26.
Bf4 {[%clk 0:00:51.8]} 26... Rc8 {[%clk 0:00:31.2]} 27. Qd1 {[%clk 0:00:46]}
27... Bb8 {[%clk 0:00:28.3]} 28. c4 {[%clk 0:00:41.3]} 28... Nxc4 {[%clk
0:00:25.7]} 29. Bxb8 {[%clk 0:00:40.7]} 29... Rxb8 {[%clk 0:00:26]} 30. Rxc4
{[%clk 0:00:40]} 1-0

[Event "*** Titled Tuesday Blitz"]
[Site "Chess.com"]
[Date "2020.04.21"]
[Round "2"]
[White "2nd_life"]
[Black "CraiggoryC"]
[Result "1-0"]
[WhiteElo "2388"]
[BlackElo "2065"]
[TimeControl "180+1"]
[EndTime "10:17:00 PDT"]
[Termination "2nd_life won on time"]

1. e4 {[%clk 0:03:00.9]} 1... e6 {[%clk 0:02:50.3]} 2. d4 {[%clk 0:02:59.5]}
2... d5 {[%clk 0:02:49.3]} 3. Nc3 {[%clk 0:02:58.7]} 3... Bb4 {[%clk 0:02:48.6]}
4. e5 {[%clk 0:02:58.8]} 4... c5 {[%clk 0:02:49.1]} 5. a3 {[%clk 0:02:58.6]}
5... Bxc3+ {[%clk 0:02:49.6]} 6. bxc3 {[%clk 0:02:59.5]} 6... Ne7 {[%clk
0:02:49.5]} 7. h4 {[%clk 0:02:58.6]} 7... Nbc6 {[%clk 0:02:47]} 8. h5 {[%clk
0:02:57.9]} 8... Qa5 {[%clk 0:02:46]} 9. Bd2 {[%clk 0:02:53.5]} 9... Bd7 {[%clk
0:02:45]} 10. Nf3 {[%clk 0:02:49.7]} 10... O-O-O {[%clk 0:02:25.4]} 11. h6
{[%clk 0:02:39.4]} 11... gxh6 {[%clk 0:02:24.4]} 12. Rxh6 {[%clk 0:02:37.7]}
12... Ng8 {[%clk 0:02:09.2]} 13. Rh4 {[%clk 0:02:33.3]} 13... f6 {[%clk
0:02:08.5]} 14. Bd3 {[%clk 0:02:05.9]} 14... c4 {[%clk 0:01:26.3]} 15. Be2
{[%clk 0:01:55.3]} 15... fxe5 {[%clk 0:01:22.1]} 16. Nxe5 {[%clk 0:01:46.6]}
16... Nxe5 {[%clk 0:01:19.9]} 17. dxe5 {[%clk 0:01:47.5]} 17... Ne7 {[%clk
0:01:13.5]} 18. Bg4 {[%clk 0:01:37.7]} 18... Ng6 {[%clk 0:00:55.8]} 19. Rh5
{[%clk 0:01:37.1]} 19... Rdf8 {[%clk 0:00:47.2]} 20. g3 {[%clk 0:01:31.4]} 20...
Qc7 {[%clk 0:00:23.9]} 21. Qe2 {[%clk 0:01:19.7]} 21... Rf7 {[%clk 0:00:22.9]}
22. Qe3 {[%clk 0:01:14.8]} 22... Kb8 {[%clk 0:00:18.7]} 23. Qd4 {[%clk
0:01:06.8]} 23... Bc8 {[%clk 0:00:15.3]} 24. Be3 {[%clk 0:01:05.4]} 24... b6
{[%clk 0:00:14.8]} 25. a4 {[%clk 0:01:05.3]} 25... Rhf8 {[%clk 0:00:09.1]} 26.
a5 {[%clk 0:01:04.7]} 26... Bb7 {[%clk 0:00:06.5]} 27. axb6 {[%clk 0:01:02]}
27... axb6 {[%clk 0:00:06.4]} 28. Qxb6 {[%clk 0:00:44.9]} 28... Qxb6 {[%clk
0:00:03.4]} 29. Bxb6 {[%clk 0:00:44.9]} 29... Bc8 {[%clk 0:00:03.2]} 30. Bd4
{[%clk 0:00:44.4]} 30... Rb7 {[%clk 0:00:02.3]} 31. f4 {[%clk 0:00:42.6]} 31...
Rff7 {[%clk 0:00:01.7]} 32. Kd2 {[%clk 0:00:40.2]} 1-0